[Event "Titled Tuesday Blitz January 31 Early 2023"]
[White "Lortkipanidze, Nodar"]
[Black "Orlov, Georgi"]
[WhiteFideId "13604058"]
[BlackFideId "2011271"]
[WhiteElo "2406"]
[BlackElo "2453"]
[Result "0-1"]
[Round "07"]
[TimeControl "180+2"]
[Date "2023.01.31"]
[WhiteClock "0:00:45"]
[BlackClock "0:00:01"]

1. e4 {[%clk 0:02:55]}  e6 {[%clk 0:02:59]} 2. Qe2 {[%clk 0:02:55]}  d5 {[%clk 0:03:00]} 3. exd5 {[%clk 0:02:56]}  Nf6 {[%clk 0:02:56]} 4. dxe6 {[%clk 0:02:55]}  Bxe6 {[%clk 0:02:55]} 5. Nc3 {[%clk 0:02:54]}  Bc5 {[%clk 0:02:53]} 6. Nf3 {[%clk 0:02:51]}  O-O {[%clk 0:02:49]} 7. Qd1 {[%clk 0:02:51]}  Nc6 {[%clk 0:02:00]} 8. Be2 {[%clk 0:02:50]}  Qd6 {[%clk 0:02:00]} 9. O-O {[%clk 0:02:49]}  Ng4 {[%clk 0:01:58]} 10. Ne4 {[%clk 0:02:43]}  Qd5 {[%clk 0:01:57]} 11. Nxc5 {[%clk 0:02:43]}  Qxc5 {[%clk 0:01:57]} 12. d4 {[%clk 0:02:43]}  Qd6 {[%clk 0:01:56]} 13. h3 {[%clk 0:02:43]}  Nf6 {[%clk 0:01:56]} 14. c4 {[%clk 0:02:36]}  Bf5 {[%clk 0:01:56]} 15. d5 {[%clk 0:02:29]}  Ne5 {[%clk 0:01:43]} 16. Be3 {[%clk 0:02:28]}  Rfe8 {[%clk 0:01:35]} 17. Qd4 {[%clk 0:02:25]}  Ng6 {[%clk 0:01:15]} 18. Rfd1 {[%clk 0:02:07]}  b6 {[%clk 0:01:13]} 19. Rac1 {[%clk 0:01:52]}  Nd7 {[%clk 0:01:03]} 20. Qc3 {[%clk 0:01:47]}  Nc5 {[%clk 0:00:54]} 21. b4 {[%clk 0:01:46]}  Ne4 {[%clk 0:00:54]} 22. Qb2 {[%clk 0:01:42]}  Ng3 {[%clk 0:00:48]} 23. c5 {[%clk 0:01:42]}  Nxe2+ {[%clk 0:00:46]} 24. Qxe2 {[%clk 0:01:42]}  Qf6 {[%clk 0:00:41]} 25. Nd4 {[%clk 0:01:35]}  Be4 {[%clk 0:00:33]} 26. Nb5 {[%clk 0:01:35]}  Bxg2 {[%clk 0:00:28]} 27. Qc4 {[%clk 0:01:18]}  Bf3 {[%clk 0:00:17]} 28. Rd4 {[%clk 0:01:18]}  Ne5 {[%clk 0:00:16]} 29. Kh2 {[%clk 0:01:14]}  Nxc4 {[%clk 0:00:15]} 30. Rcxc4 {[%clk 0:01:13]}  Qe7 {[%clk 0:00:12]} 31. d6 {[%clk 0:01:11]}  cxd6 {[%clk 0:00:12]} 32. Nxd6 {[%clk 0:01:10]}  Red8 {[%clk 0:00:09]} 33. Kg3 {[%clk 0:01:09]}  bxc5 {[%clk 0:00:09]} 34. bxc5 {[%clk 0:01:09]}  Bc6 {[%clk 0:00:09]} 35. Rf4 {[%clk 0:01:08]}  Qe5 {[%clk 0:00:09]} 36. h4 {[%clk 0:01:08]}  f6 {[%clk 0:00:07]} 37. Kh3 {[%clk 0:01:00]}  Qe6+ {[%clk 0:00:07]} 38. Kh2 {[%clk 0:01:00]}  Qd5 {[%clk 0:00:07]} 39. Rce4 {[%clk 0:00:57]}  Qd1 {[%clk 0:00:07]} 40. Rg4 {[%clk 0:00:48]}  Bxe4 {[%clk 0:00:07]} 41. Rxe4 {[%clk 0:00:49]}  Qe2 {[%clk 0:00:05]} 42. Re7 {[%clk 0:00:49]}  Qf3 {[%clk 0:00:04]} 43. h5 {[%clk 0:00:46]}  Rab8 {[%clk 0:00:04]} 44. h6 {[%clk 0:00:46]}  gxh6 {[%clk 0:00:02]} 45. Nf7 {[%clk 0:00:45]}  Qh5+ {[%clk 0:00:01]} 46. Kg3 {[%clk 0:00:45]}  Qg6+ {[%clk 0:00:01]} 47. Kf4 {[%clk 0:00:45]}  Rb4+ {[%clk 0:00:01]} 48. Kf3 {[%clk 0:00:45]}  Qg4# {[%clk 0:00:01]} 0-1


[Site "https://www.chess.com"]

[Event "Titled Tuesday Blitz January 31 Early 2023"]
[White "Costachi, Mihnea"]
[Black "Ordekalog"]
[WhiteFideId "1217518"]
[WhiteElo "2476"]
[BlackElo "2589"]
[Result "1/2-1/2"]
[Round "07"]
[TimeControl "180+2"]
[Date "2023.01.31"]
[WhiteClock "0:00:29"]
[BlackClock "0:00:12"]

1. Nc3 {[%clk 0:03:00]}  d5 {[%clk 0:02:58]} 2. d4 {[%clk 0:03:00]}  Nf6 {[%clk 0:02:58]} 3. Bf4 {[%clk 0:03:01]}  Bg4 {[%clk 0:02:51]} 4. f3 {[%clk 0:03:00]}  Bh5 {[%clk 0:02:50]} 5. g4 {[%clk 0:02:59]}  Bg6 {[%clk 0:02:49]} 6. h4 {[%clk 0:02:59]}  h6 {[%clk 0:02:46]} 7. e3 {[%clk 0:02:59]}  e6 {[%clk 0:02:45]} 8. Nh3 {[%clk 0:02:57]}  a6 {[%clk 0:02:35]} 9. Bd3 {[%clk 0:02:57]}  Bxd3 {[%clk 0:02:33]} 10. Qxd3 {[%clk 0:02:57]}  c5 {[%clk 0:02:31]} 11. dxc5 {[%clk 0:02:55]}  Bxc5 {[%clk 0:02:30]} 12. O-O-O {[%clk 0:02:51]}  Nc6 {[%clk 0:02:29]} 13. g5 {[%clk 0:02:50]}  hxg5 {[%clk 0:02:24]} 14. hxg5 {[%clk 0:02:48]}  Nd7 {[%clk 0:02:17]} 15. g6 {[%clk 0:02:47]}  f6 {[%clk 0:02:15]} 16. Nxd5 {[%clk 0:02:35]}  exd5 {[%clk 0:01:42]} 17. Qxd5 {[%clk 0:02:35]}  Qe7 {[%clk 0:01:42]} 18. Nf2 {[%clk 0:02:04]}  Rxh1 {[%clk 0:01:29]} 19. Rxh1 {[%clk 0:02:05]}  Bxe3+ {[%clk 0:01:20]} 20. Bxe3 {[%clk 0:02:00]}  Qxe3+ {[%clk 0:01:21]} 21. Kb1 {[%clk 0:01:59]}  O-O-O {[%clk 0:01:20]} 22. Ne4 {[%clk 0:01:54]}  Nde5 {[%clk 0:01:12]} 23. Qe6+ {[%clk 0:01:48]}  Kb8 {[%clk 0:01:12]} 24. a3 {[%clk 0:01:14]}  Qxf3 {[%clk 0:01:08]} 25. Re1 {[%clk 0:01:14]}  Rd1+ {[%clk 0:00:35]} 26. Rxd1 {[%clk 0:01:14]}  Qxd1+ {[%clk 0:00:35]} 27. Ka2 {[%clk 0:01:15]}  Qd7 {[%clk 0:00:29]} 28. Qg8+ {[%clk 0:01:12]}  Ka7 {[%clk 0:00:28]} 29. Nc5 {[%clk 0:01:12]}  Qe7 {[%clk 0:00:28]} 30. Ne6 {[%clk 0:01:02]}  Nxg6 {[%clk 0:00:24]} 31. Nxg7 {[%clk 0:01:03]}  Nge5 {[%clk 0:00:22]} 32. b3 {[%clk 0:00:58]}  Qf7 {[%clk 0:00:21]} 33. Qh8 {[%clk 0:00:57]}  Qg6 {[%clk 0:00:20]} 34. Kb2 {[%clk 0:00:55]}  Nd4 {[%clk 0:00:19]} 35. Qc8 {[%clk 0:00:53]}  Qxg7 {[%clk 0:00:16]} 36. Qc5+ {[%clk 0:00:53]}  b6 {[%clk 0:00:16]} 37. Qxd4 {[%clk 0:00:53]}  Qd7 {[%clk 0:00:16]} 38. Qf4 {[%clk 0:00:52]}  Qe6 {[%clk 0:00:16]} 39. a4 {[%clk 0:00:47]}  a5 {[%clk 0:00:15]} 40. Qh4 {[%clk 0:00:43]}  Qd6 {[%clk 0:00:15]} 41. Qh7+ {[%clk 0:00:42]}  Nd7 {[%clk 0:00:15]} 42. Qf7 {[%clk 0:00:40]}  Qd4+ {[%clk 0:00:14]} 43. Kb1 {[%clk 0:00:41]}  Qd1+ {[%clk 0:00:14]} 44. Kb2 {[%clk 0:00:42]}  Qd6 {[%clk 0:00:15]} 45. Kb1 {[%clk 0:00:40]}  Kb8 {[%clk 0:00:15]} 46. Qe8+ {[%clk 0:00:40]}  Kc7 {[%clk 0:00:15]} 47. Qa8 {[%clk 0:00:40]}  Qc6 {[%clk 0:00:15]} 48. Qe8 {[%clk 0:00:38]}  Ne5 {[%clk 0:00:12]} 49. Qe7+ {[%clk 0:00:36]}  Nd7 {[%clk 0:00:13]} 50. Qe8 {[%clk 0:00:36]}  Qh1+ {[%clk 0:00:12]} 51. Kb2 {[%clk 0:00:35]}  Qd5 {[%clk 0:00:12]} 52. Kb1 {[%clk 0:00:35]}  Qh1+ {[%clk 0:00:12]} 53. Kb2 {[%clk 0:00:35]}  Qb7 {[%clk 0:00:13]} 54. Qe6 {[%clk 0:00:33]}  Qc6 {[%clk 0:00:12]} 55. Qe7 {[%clk 0:00:34]}  Qd6 {[%clk 0:00:12]} 56. Qf7 {[%clk 0:00:32]}  Qe5+ {[%clk 0:00:12]} 57. Kb1 {[%clk 0:00:32]}  f5 {[%clk 0:00:12]} 58. Qc4+ {[%clk 0:00:32]}  Kd6 {[%clk 0:00:12]} 59. Qd3+ {[%clk 0:00:29]}  Kc7 {[%clk 0:00:12]} 60. Qc4+ {[%clk 0:00:29]}  Nc5 {[%clk 0:00:12]} 61. Qf7+ {[%clk 0:00:29]}  Nd7 {[%clk 0:00:12]} 62. Qc4+ {[%clk 0:00:29]} 1/2-1/2


[Site "https://www.chess.com"]

[Event "Titled Tuesday Blitz January 31 Early 2023"]
[White "Skuhala, Barbara"]
[Black "Zhigalko, Sergei"]
[WhiteFideId "14605465"]
[BlackFideId "13502956"]
[WhiteElo "2153"]
[BlackElo "2572"]
[Result "1-0"]
[Round "07"]
[TimeControl "180+2"]
[Date "2023.01.31"]
[WhiteClock "0:00:23"]
[BlackClock "0:00:02"]

1. e4 {[%clk 0:02:55]}  c5 {[%clk 0:02:59]} 2. Nf3 {[%clk 0:02:52]}  d6 {[%clk 0:03:00]} 3. d4 {[%clk 0:02:52]}  cxd4 {[%clk 0:03:00]} 4. Nxd4 {[%clk 0:02:52]}  Nf6 {[%clk 0:03:00]} 5. f3 {[%clk 0:02:52]}  e5 {[%clk 0:02:57]} 6. Nb3 {[%clk 0:02:49]}  Be7 {[%clk 0:02:53]} 7. c4 {[%clk 0:02:49]}  O-O {[%clk 0:02:52]} 8. Nc3 {[%clk 0:02:49]}  a5 {[%clk 0:02:47]} 9. Be3 {[%clk 0:02:46]}  Be6 {[%clk 0:02:40]} 10. Be2 {[%clk 0:02:46]}  a4 {[%clk 0:02:37]} 11. Nd2 {[%clk 0:02:46]}  Qa5 {[%clk 0:02:35]} 12. O-O {[%clk 0:02:44]}  Nbd7 {[%clk 0:02:28]} 13. Rc1 {[%clk 0:02:40]}  Bd8 {[%clk 0:02:26]} 14. Kh1 {[%clk 0:02:39]}  Bb6 {[%clk 0:02:26]} 15. Bxb6 {[%clk 0:02:38]}  Nxb6 {[%clk 0:02:24]} 16. Nd5 {[%clk 0:02:38]}  Nfd7 {[%clk 0:02:15]} 17. f4 {[%clk 0:02:31]}  Bxd5 {[%clk 0:02:02]} 18. exd5 {[%clk 0:02:30]}  f5 {[%clk 0:01:50]} 19. fxe5 {[%clk 0:02:26]}  Nxe5 {[%clk 0:01:50]} 20. Nf3 {[%clk 0:02:25]}  Nxf3 {[%clk 0:01:41]} 21. Rxf3 {[%clk 0:02:26]}  Nd7 {[%clk 0:01:40]} 22. Bd3 {[%clk 0:02:22]}  g6 {[%clk 0:01:38]} 23. Re3 {[%clk 0:02:07]}  Rae8 {[%clk 0:01:22]} 24. Qe2 {[%clk 0:02:05]}  Qd8 {[%clk 0:00:56]} 25. Re1 {[%clk 0:02:03]}  Rxe3 {[%clk 0:00:46]} 26. Qxe3 {[%clk 0:02:03]}  Nc5 {[%clk 0:00:34]} 27. Bf1 {[%clk 0:01:51]}  Qf6 {[%clk 0:00:28]} 28. b4 {[%clk 0:01:50]}  axb3 {[%clk 0:00:29]} 29. axb3 {[%clk 0:01:50]}  Ne4 {[%clk 0:00:12]} 30. Bd3 {[%clk 0:01:49]}  Nc5 {[%clk 0:00:05]} 31. b4 {[%clk 0:01:46]}  Nd7 {[%clk 0:00:04]} 32. c5 {[%clk 0:01:43]}  f4 {[%clk 0:00:03]} 33. Qh3 {[%clk 0:01:38]}  Ne5 {[%clk 0:00:03]} 34. Be4 {[%clk 0:01:34]}  Kg7 {[%clk 0:00:03]} 35. c6 {[%clk 0:01:29]}  bxc6 {[%clk 0:00:04]} 36. dxc6 {[%clk 0:01:29]}  h5 {[%clk 0:00:05]} 37. b5 {[%clk 0:01:29]}  Ng4 {[%clk 0:00:05]} 38. Qf3 {[%clk 0:00:41]}  Qh4 {[%clk 0:00:05]} 39. Qc3+ {[%clk 0:00:37]}  Kh6 {[%clk 0:00:05]} 40. h3 {[%clk 0:00:37]}  Nf2+ {[%clk 0:00:03]} 41. Kg1 {[%clk 0:00:35]}  f3 {[%clk 0:00:03]} 42. Qe3+ {[%clk 0:00:33]}  Kg7 {[%clk 0:00:03]} 43. Qxf2 {[%clk 0:00:34]}  Qg5 {[%clk 0:00:02]} 44. Bxf3 {[%clk 0:00:32]}  Qxb5 {[%clk 0:00:03]} 45. c7 {[%clk 0:00:25]}  Qc4 {[%clk 0:00:03]} 46. Qb2+ {[%clk 0:00:24]}  Kh6 {[%clk 0:00:03]} 47. Qc1+ {[%clk 0:00:24]}  Qxc1 {[%clk 0:00:03]} 48. Rxc1 {[%clk 0:00:23]}  Rc8 {[%clk 0:00:02]} 49. Bb7 {[%clk 0:00:23]}  Rxc7 {[%clk 0:00:02]} 50. Rxc7 {[%clk 0:00:23]} 1-0


[Site "https://www.chess.com"]

[Event "Titled Tuesday Blitz January 31 Early 2023"]
[White "Yuan, Qingyu"]
[Black "Royal, Shreyas"]
[WhiteFideId "8609772"]
[BlackFideId "448869"]
[WhiteElo "2373"]
[BlackElo "2438"]
[Result "1-0"]
[Round "07"]
[TimeControl "180+2"]
[Date "2023.01.31"]
[WhiteClock "0:00:10"]
[BlackClock "0:00:34"]

1. e4 {[%clk 0:03:00]}  e5 {[%clk 0:03:00]} 2. Nf3 {[%clk 0:03:00]}  Nc6 {[%clk 0:03:00]} 3. Bb5 {[%clk 0:03:00]}  a6 {[%clk 0:03:01]} 4. Ba4 {[%clk 0:03:00]}  Nf6 {[%clk 0:03:01]} 5. d3 {[%clk 0:03:00]}  b5 {[%clk 0:03:01]} 6. Bb3 {[%clk 0:03:01]}  Be7 {[%clk 0:03:01]} 7. a4 {[%clk 0:02:57]}  b4 {[%clk 0:02:59]} 8. a5 {[%clk 0:02:53]}  d6 {[%clk 0:02:55]} 9. h3 {[%clk 0:02:50]}  h6 {[%clk 0:02:54]} 10. O-O {[%clk 0:02:46]}  O-O {[%clk 0:02:54]} 11. Nbd2 {[%clk 0:02:43]}  Be6 {[%clk 0:02:54]} 12. Re1 {[%clk 0:02:42]}  Qd7 {[%clk 0:02:53]} 13. Nc4 {[%clk 0:02:33]}  Rfe8 {[%clk 0:02:52]} 14. Be3 {[%clk 0:02:31]}  Bf8 {[%clk 0:02:51]} 15. Ba4 {[%clk 0:02:23]}  Bxc4 {[%clk 0:02:51]} 16. dxc4 {[%clk 0:02:22]}  Red8 {[%clk 0:02:33]} 17. Qd3 {[%clk 0:02:15]}  Rab8 {[%clk 0:02:29]} 18. Nd2 {[%clk 0:02:00]}  b3 {[%clk 0:02:14]} 19. c3 {[%clk 0:01:53]}  Rb7 {[%clk 0:02:10]} 20. f3 {[%clk 0:01:40]}  Rdb8 {[%clk 0:02:06]} 21. Red1 {[%clk 0:01:37]}  g6 {[%clk 0:01:59]} 22. Bf2 {[%clk 0:01:34]}  h5 {[%clk 0:01:51]} 23. Nf1 {[%clk 0:01:30]}  Bh6 {[%clk 0:01:46]} 24. Be3 {[%clk 0:01:22]}  Bxe3+ {[%clk 0:01:46]} 25. Nxe3 {[%clk 0:01:22]}  Kg7 {[%clk 0:01:46]} 26. Nd5 {[%clk 0:01:20]}  Ng8 {[%clk 0:01:46]} 27. Nb4 {[%clk 0:01:11]}  Nxb4 {[%clk 0:01:44]} 28. cxb4 {[%clk 0:01:05]}  c6 {[%clk 0:01:34]} 29. b5 {[%clk 0:00:58]}  axb5 {[%clk 0:01:28]} 30. cxb5 {[%clk 0:00:55]}  cxb5 {[%clk 0:01:29]} 31. Bxb3 {[%clk 0:00:55]}  Rd8 {[%clk 0:01:26]} 32. a6 {[%clk 0:00:49]}  Ra7 {[%clk 0:01:27]} 33. Bd5 {[%clk 0:00:49]}  Ne7 {[%clk 0:01:25]} 34. Bb7 {[%clk 0:00:48]}  h4 {[%clk 0:01:20]} 35. Kh1 {[%clk 0:00:38]}  Nc8 {[%clk 0:01:11]} 36. Ra5 {[%clk 0:00:32]}  Nb6 {[%clk 0:01:05]} 37. Rxb5 {[%clk 0:00:29]}  Na4 {[%clk 0:01:06]} 38. Qb3 {[%clk 0:00:20]}  Rb8 {[%clk 0:00:38]} 39. Qxa4 {[%clk 0:00:12]}  Qc7 {[%clk 0:00:39]} 40. Qb4 {[%clk 0:00:11]}  Qc2 {[%clk 0:00:38]} 41. Qd2 {[%clk 0:00:10]}  Qc4 {[%clk 0:00:37]} 42. Rd5 {[%clk 0:00:09]}  Rbxb7 {[%clk 0:00:31]} 43. axb7 {[%clk 0:00:10]}  Rxb7 {[%clk 0:00:32]} 44. Rxd6 {[%clk 0:00:10]}  Rb3 {[%clk 0:00:33]} 45. Rd3 {[%clk 0:00:10]}  Rb8 {[%clk 0:00:33]} 46. Qc3 {[%clk 0:00:10]}  Qb5 {[%clk 0:00:33]} 47. Rd5 {[%clk 0:00:10]}  Qe2 {[%clk 0:00:33]} 48. Qxe5+ {[%clk 0:00:11]}  Kh7 {[%clk 0:00:34]} 49. Qxb8 {[%clk 0:00:10]} 1-0


[Site "https://www.chess.com"]

[Event "Titled Tuesday Blitz January 31 Early 2023"]
[White "Klose, Eli"]
[Black "Urazayev, Arystanbek"]
[WhiteFideId "16242955"]
[BlackFideId "13709810"]
[WhiteElo "1519"]
[BlackElo "2460"]
[Result "0-1"]
[Round "07"]
[TimeControl "180+2"]
[Date "2023.01.31"]
[WhiteClock "0:01:31"]
[BlackClock "0:02:19"]

1. e4 {[%clk 0:03:00]}  c5 {[%clk 0:03:00]} 2. Nc3 {[%clk 0:03:00]}  e6 {[%clk 0:03:01]} 3. g3 {[%clk 0:03:00]}  Nc6 {[%clk 0:03:01]} 4. Bg2 {[%clk 0:03:00]}  Nf6 {[%clk 0:03:01]} 5. d3 {[%clk 0:03:01]}  d5 {[%clk 0:03:01]} 6. Nge2 {[%clk 0:02:58]}  Be7 {[%clk 0:03:01]} 7. exd5 {[%clk 0:02:58]}  exd5 {[%clk 0:03:01]} 8. d4 {[%clk 0:02:58]}  O-O {[%clk 0:03:00]} 9. O-O {[%clk 0:02:57]}  cxd4 {[%clk 0:02:57]} 10. Nxd4 {[%clk 0:02:57]}  Bc5 {[%clk 0:02:57]} 11. Nb3 {[%clk 0:02:56]}  Bb6 {[%clk 0:02:56]} 12. Bg5 {[%clk 0:02:56]}  d4 {[%clk 0:02:56]} 13. Nd5 {[%clk 0:02:54]}  Qd6 {[%clk 0:02:44]} 14. Bxf6 {[%clk 0:02:31]}  gxf6 {[%clk 0:02:43]} 15. Qh5 {[%clk 0:02:32]}  f5 {[%clk 0:02:39]} 16. Rfe1 {[%clk 0:02:11]}  Qg6 {[%clk 0:02:37]} 17. Qe2 {[%clk 0:02:01]}  Be6 {[%clk 0:02:31]} 18. Nxb6 {[%clk 0:01:46]}  axb6 {[%clk 0:02:28]} 19. Qb5 {[%clk 0:01:46]}  f4 {[%clk 0:02:21]} 20. Nxd4 {[%clk 0:01:38]}  Nxd4 {[%clk 0:02:20]} 21. Be4 {[%clk 0:01:31]}  Nxb5 {[%clk 0:02:19]} 0-1


[Site "https://www.chess.com"]

[Event "Titled Tuesday Blitz January 31 Early 2023"]
[White "Maksimovic, Bojan"]
[Black "Zhu, Jiner"]
[WhiteFideId "14408120"]
[BlackFideId "8608059"]
[WhiteElo "2486"]
[BlackElo "2507"]
[Result "0-1"]
[Round "07"]
[TimeControl "180+2"]
[Date "2023.01.31"]
[WhiteClock "0:00:01"]
[BlackClock "0:00:25"]

1. e4 {[%clk 0:03:00]}  c5 {[%clk 0:02:57]} 2. Nf3 {[%clk 0:03:00]}  e6 {[%clk 0:02:57]} 3. d4 {[%clk 0:03:01]}  cxd4 {[%clk 0:02:57]} 4. Nxd4 {[%clk 0:03:00]}  a6 {[%clk 0:02:58]} 5. Nc3 {[%clk 0:03:00]}  b5 {[%clk 0:02:56]} 6. Bd3 {[%clk 0:02:59]}  Bb7 {[%clk 0:02:56]} 7. O-O {[%clk 0:03:00]}  Nc6 {[%clk 0:02:53]} 8. Nxc6 {[%clk 0:02:59]}  Bxc6 {[%clk 0:02:53]} 9. Re1 {[%clk 0:03:00]}  d6 {[%clk 0:02:42]} 10. Qf3 {[%clk 0:02:53]}  Nf6 {[%clk 0:02:40]} 11. Qg3 {[%clk 0:02:53]}  Be7 {[%clk 0:02:31]} 12. Qxg7 {[%clk 0:02:42]}  Rg8 {[%clk 0:02:31]} 13. Qh6 {[%clk 0:02:42]}  b4 {[%clk 0:02:30]} 14. Nd5 {[%clk 0:02:25]}  exd5 {[%clk 0:01:51]} 15. exd5 {[%clk 0:02:23]}  Nxd5 {[%clk 0:01:49]} 16. Bg5 {[%clk 0:01:51]}  Qd7 {[%clk 0:01:47]} 17. Qxh7 {[%clk 0:01:38]}  Nf6 {[%clk 0:01:15]} 18. Bxf6 {[%clk 0:01:26]}  Rxg2+ {[%clk 0:01:14]} 19. Kf1 {[%clk 0:01:24]}  Rg1+ {[%clk 0:01:11]} 20. Ke2 {[%clk 0:00:58]}  Qg4+ {[%clk 0:00:58]} 21. Kd2 {[%clk 0:00:53]}  Qf4+ {[%clk 0:00:58]} 22. Re3 {[%clk 0:00:40]}  Rxa1 {[%clk 0:00:48]} 23. Bxe7 {[%clk 0:00:03]}  Qxf2+ {[%clk 0:00:47]} 24. Re2 {[%clk 0:00:01]}  Qf4+ {[%clk 0:00:47]} 25. Re3 {[%clk 0:00:01]}  Rd1+ {[%clk 0:00:26]} 26. Kxd1 {[%clk 0:00:01]}  Qxe3 {[%clk 0:00:26]} 27. Bh4 {[%clk 0:00:01]}  Bf3+ {[%clk 0:00:26]} 28. Be2 {[%clk 0:00:01]}  Qxe2+ {[%clk 0:00:25]} 29. Kc1 {[%clk 0:00:01]}  Qd1# {[%clk 0:00:25]} 0-1


[Site "https://www.chess.com"]

[Event "Titled Tuesday Blitz January 31 Early 2023"]
[White "Rakhmanov, Aleksandr"]
[Black "Priasmoro, Novendra"]
[WhiteFideId "4173708"]
[BlackFideId "7105029"]
[WhiteElo "2632"]
[BlackElo "2504"]
[Result "1-0"]
[Round "07"]
[TimeControl "180+2"]
[Date "2023.01.31"]
[WhiteClock "0:01:13"]
[BlackClock "0:01:18"]

1. e4 {[%clk 0:03:00]}  e5 {[%clk 0:02:54]} 2. d4 {[%clk 0:02:57]}  exd4 {[%clk 0:02:53]} 3. Nf3 {[%clk 0:02:54]}  Nc6 {[%clk 0:02:52]} 4. Bc4 {[%clk 0:02:54]}  Nf6 {[%clk 0:02:53]} 5. e5 {[%clk 0:02:54]}  d5 {[%clk 0:02:53]} 6. Bb5 {[%clk 0:02:54]}  Ne4 {[%clk 0:02:54]} 7. Nxd4 {[%clk 0:02:54]}  Bd7 {[%clk 0:02:55]} 8. Bxc6 {[%clk 0:02:55]}  bxc6 {[%clk 0:02:55]} 9. O-O {[%clk 0:02:55]}  Bc5 {[%clk 0:02:56]} 10. Be3 {[%clk 0:02:54]}  Bb6 {[%clk 0:02:55]} 11. f3 {[%clk 0:02:54]}  Ng5 {[%clk 0:02:55]} 12. Nd2 {[%clk 0:02:52]}  c5 {[%clk 0:02:53]} 13. N4b3 {[%clk 0:02:51]}  c4 {[%clk 0:02:51]} 14. Nc5 {[%clk 0:02:50]}  Ne6 {[%clk 0:02:50]} 15. b4 {[%clk 0:02:45]}  d4 {[%clk 0:02:42]} 16. Bf2 {[%clk 0:02:28]}  Bxc5 {[%clk 0:02:41]} 17. bxc5 {[%clk 0:02:27]}  c3 {[%clk 0:02:38]} 18. Nb3 {[%clk 0:02:14]}  Bb5 {[%clk 0:02:38]} 19. Re1 {[%clk 0:02:12]}  d3 {[%clk 0:02:35]} 20. cxd3 {[%clk 0:02:12]}  Qxd3 {[%clk 0:02:32]} 21. Qxd3 {[%clk 0:02:11]}  Bxd3 {[%clk 0:02:33]} 22. Re3 {[%clk 0:02:09]}  Rd8 {[%clk 0:02:32]} 23. Rd1 {[%clk 0:01:55]}  Bb5 {[%clk 0:01:32]} 24. Rxd8+ {[%clk 0:01:53]}  Kxd8 {[%clk 0:01:33]} 25. Rxc3 {[%clk 0:01:53]}  Kc8 {[%clk 0:01:34]} 26. Be3 {[%clk 0:01:45]}  Rd8 {[%clk 0:01:34]} 27. Kf2 {[%clk 0:01:43]}  Rd1 {[%clk 0:01:33]} 28. Rc1 {[%clk 0:01:42]}  Rxc1 {[%clk 0:01:32]} 29. Nxc1 {[%clk 0:01:41]}  Kd7 {[%clk 0:01:31]} 30. c6+ {[%clk 0:01:34]}  Kxc6 {[%clk 0:01:31]} 31. Bxa7 {[%clk 0:01:34]}  Kd5 {[%clk 0:01:32]} 32. Ne2 {[%clk 0:01:25]}  Kxe5 {[%clk 0:01:27]} 33. Nc3 {[%clk 0:01:24]}  Ba6 {[%clk 0:01:25]} 34. Ke3 {[%clk 0:01:24]}  g5 {[%clk 0:01:24]} 35. g3 {[%clk 0:01:23]}  f5 {[%clk 0:01:24]} 36. f4+ {[%clk 0:01:22]}  gxf4+ {[%clk 0:01:24]} 37. gxf4+ {[%clk 0:01:22]}  Kd6 {[%clk 0:01:22]} 38. Bd4 {[%clk 0:01:21]}  c5 {[%clk 0:01:18]} 39. Be5+ {[%clk 0:01:20]}  Kc6 {[%clk 0:01:18]} 40. Kf3 {[%clk 0:01:13]} 1-0


[Site "https://www.chess.com"]

[Event "Titled Tuesday Blitz January 31 Early 2023"]
[White "Bosnjak, Petar"]
[Black "De Silva, L M S T"]
[WhiteFideId "14532581"]
[BlackFideId "9953698"]
[WhiteElo "2337"]
[BlackElo "2452"]
[Result "1-0"]
[Round "07"]
[TimeControl "180+2"]
[Date "2023.01.31"]
[WhiteClock "0:00:32"]
[BlackClock "0:00:05"]

1. d4 {[%clk 0:03:00]}  Nf6 {[%clk 0:02:59]} 2. c4 {[%clk 0:03:01]}  e6 {[%clk 0:02:58]} 3. Nf3 {[%clk 0:02:59]}  d5 {[%clk 0:02:58]} 4. Nc3 {[%clk 0:02:58]}  Be7 {[%clk 0:02:56]} 5. Bf4 {[%clk 0:02:57]}  O-O {[%clk 0:02:56]} 6. e3 {[%clk 0:02:58]}  a6 {[%clk 0:02:47]} 7. cxd5 {[%clk 0:02:55]}  e5 {[%clk 0:02:46]} 8. dxe5 {[%clk 0:02:52]}  Nh5 {[%clk 0:02:38]} 9. Bg3 {[%clk 0:02:49]}  Bg4 {[%clk 0:02:34]} 10. Be2 {[%clk 0:02:48]}  Nd7 {[%clk 0:02:33]} 11. Qd4 {[%clk 0:02:38]}  Bxf3 {[%clk 0:02:11]} 12. Bxf3 {[%clk 0:02:35]}  Nxg3 {[%clk 0:02:12]} 13. hxg3 {[%clk 0:02:34]}  Bc5 {[%clk 0:02:12]} 14. Qc4 {[%clk 0:02:21]}  Nxe5 {[%clk 0:02:11]} 15. Qe4 {[%clk 0:02:15]}  Ng6 {[%clk 0:02:10]} 16. O-O {[%clk 0:02:11]}  Re8 {[%clk 0:02:09]} 17. Qc2 {[%clk 0:02:10]}  Bd6 {[%clk 0:02:05]} 18. Rad1 {[%clk 0:02:09]}  Re5 {[%clk 0:01:52]} 19. Ne4 {[%clk 0:02:06]}  h5 {[%clk 0:01:51]} 20. Nxd6 {[%clk 0:02:05]}  cxd6 {[%clk 0:01:52]} 21. Rd4 {[%clk 0:02:01]}  Rc8 {[%clk 0:01:48]} 22. Qe2 {[%clk 0:01:51]}  h4 {[%clk 0:01:46]} 23. gxh4 {[%clk 0:01:51]}  Nxh4 {[%clk 0:01:47]} 24. g3 {[%clk 0:01:51]}  Rc2 {[%clk 0:01:42]} 25. Qd1 {[%clk 0:01:13]}  Rc1 {[%clk 0:01:19]} 26. Qe2 {[%clk 0:01:10]}  Rc2 {[%clk 0:01:07]} 27. Qd1 {[%clk 0:01:10]}  Nxf3+ {[%clk 0:01:06]} 28. Qxf3 {[%clk 0:01:09]}  Rxb2 {[%clk 0:01:06]} 29. Rh4 {[%clk 0:01:06]}  Rxa2 {[%clk 0:00:59]} 30. Qh1 {[%clk 0:01:03]}  Qxh4 {[%clk 0:00:43]} 31. Qxh4 {[%clk 0:01:00]}  Rf5 {[%clk 0:00:42]} 32. Qd8+ {[%clk 0:00:57]}  Kh7 {[%clk 0:00:42]} 33. Qxd6 {[%clk 0:00:58]}  Rd2 {[%clk 0:00:36]} 34. e4 {[%clk 0:00:56]}  Rf6 {[%clk 0:00:33]} 35. Qc7 {[%clk 0:00:48]}  b5 {[%clk 0:00:33]} 36. e5 {[%clk 0:00:46]}  Rf5 {[%clk 0:00:33]} 37. e6 {[%clk 0:00:36]}  fxe6 {[%clk 0:00:28]} 38. dxe6 {[%clk 0:00:37]}  Re2 {[%clk 0:00:26]} 39. Qd6 {[%clk 0:00:33]}  Rfe5 {[%clk 0:00:24]} 40. Qxa6 {[%clk 0:00:33]}  Rxe6 {[%clk 0:00:20]} 41. Qxb5 {[%clk 0:00:32]}  R2e5 {[%clk 0:00:21]} 42. Qd3+ {[%clk 0:00:32]}  Kg8 {[%clk 0:00:20]} 43. Kg2 {[%clk 0:00:33]}  Re8 {[%clk 0:00:20]} 44. Rh1 {[%clk 0:00:33]}  Re4 {[%clk 0:00:19]} 45. Qd5+ {[%clk 0:00:33]}  R8e6 {[%clk 0:00:20]} 46. Qd8+ {[%clk 0:00:32]}  Re8 {[%clk 0:00:19]} 47. Qd5+ {[%clk 0:00:32]}  R8e6 {[%clk 0:00:19]} 48. Rh4 {[%clk 0:00:32]}  Re5 {[%clk 0:00:13]} 49. Qd8+ {[%clk 0:00:30]}  Re8 {[%clk 0:00:13]} 50. Qd7 {[%clk 0:00:30]}  R5e7 {[%clk 0:00:10]} 51. Qd5+ {[%clk 0:00:30]}  Re6 {[%clk 0:00:10]} 52. Re4 {[%clk 0:00:29]}  Kf7 {[%clk 0:00:11]} 53. f4 {[%clk 0:00:30]}  g6 {[%clk 0:00:11]} 54. g4 {[%clk 0:00:30]}  Kf6 {[%clk 0:00:05]} 55. g5+ {[%clk 0:00:30]}  Kf7 {[%clk 0:00:06]} 56. f5 {[%clk 0:00:31]}  gxf5 {[%clk 0:00:07]} 57. Qxf5+ {[%clk 0:00:32]}  Kg7 {[%clk 0:00:07]} 58. Rxe6 {[%clk 0:00:32]}  Rf8 {[%clk 0:00:07]} 59. Rf6 {[%clk 0:00:32]}  Re8 {[%clk 0:00:04]} 60. Rf7+ {[%clk 0:00:31]}  Kg8 {[%clk 0:00:05]} 61. Qh7# {[%clk 0:00:32]} 1-0


[Site "https://www.chess.com"]